Cogmind - Beta 11 X7 @@@ ROGUE MODE // 2021.09.04 @ 00:44:29 Player: PhenomPhear Result: Self-destructed Performance ------------- Evolutions (3) 1500 Regions Visited (6) 1200 Robots Destroyed (41) 205 Value Destroyed (1099) 1099 Prototype IDs (1) 20 Alien Tech Used (0) 0 Bonus (893) 893 TOTAL SCORE: 4917 Bonus ------- Follower Combat Kills 193 Entered Garrisons 200 Used RIF Installer 500 Cogmind --------- Core Integrity 700/700 Matter 264/300 Energy 250/250 System Corruption 0% Temperature Cool (72) Movement Treading (160) Location -7/Factory Parts ------- > --- POWER (1) -------- Ion Engine > --- PROPULSION (4) --- Light Treads Light Treads Light Treads Light Treads > --- UTILITY (6) ------ Large Storage Unit Propulsion Shielding > --- WEAPON (2) ------- Plasma Cannon High-powered Shotgun > --- INVENTORY (15) --- Aluminum Leg Wheel Wheel Wheel Compact Wheel Cargo Storage Unit Signal Interpreter Core Shielding High-powered Shotgun High-powered Shotgun High-powered Shotgun Guided Missile Launcher Peak State ------------ > --- POWER ------------ Ion Engine > --- PROPULSION ------- Light Treads Light Treads Light Treads Light Treads > --- UTILITY ---------- Large Storage Unit Propulsion Shielding > --- WEAPON ----------- Guided Missile Launcher > --- INVENTORY -------- Aluminum Leg Wheel Wheel Wheel Compact Wheel Cargo Storage Unit Signal Interpreter Core Shielding High-powered Shotgun High-powered Shotgun High-powered Shotgun High-powered Shotgun [Rating: 19] Favorites ----------- Power Ion Engine Engine Ion Engine Propulsion Light Treads Treads Light Treads Leg Aluminum Leg Wheel Wheel Utility Large Storage Unit Storage Large Storage Unit Protection Propulsion Shielding Weapon High-powered Shotgun Energy Gun EM Pulse Gun Energy Cannon Plasma Cannon Ballistic Gun High-powered Shotgun Launcher Guided Missile Launcher Impact Weapon Hammer Build | -11 -10 -9 -9 -9 -9 -7 ------- Run | Scr Mat Mat Sto Gar Rec Fac Slots Evolved 6 | . . 2 . . . 4 Power . | . . . . . . . Propulsion 2 | . . 2 . . . . Utility 4 | . . . . . . 4 Weapon . | . . . . . . . Parts Attached 36 | 6 12 9 3 4 . 2 Power 4 | 1 1 1 . 1 . . Engine 4 | 1 1 1 . 1 . . Core . | . . . . . . . Reactor . | . . . . . . . Propulsion 11 | 2 3 3 2 1 . . Treads 9 | 2 2 2 2 1 . . Leg 1 | . . 1 . . . . Wheel 1 | . 1 . . . . . Hover . | . . . . . . . Flight . | . . . . . . . Utility 7 | 1 3 1 1 1 . . Device . | . . . . . . . Storage 2 | 1 1 . . . . . Processor . | . . . . . . . Hackware . | . . . . . . . Protection 5 | . 2 1 1 1 . . Artifact . | . . . . . . . Weapon 14 | 2 5 4 . 1 . 2 Energy Gun 1 | 1 . . . . . . Energy Cannon 1 | . . . . . . 1 Ballistic Gun 9 | 1 5 2 . . . 1 Ballistic Cannon . | . . . . . . . Launcher 1 | . . . . 1 . . Special Weapon . | . . . . . . . Impact Weapon 2 | . . 2 . . . . Slashing Weapon . | . . . . . . . Piercing Weapon . | . . . . . . . Special Melee Weapon . | . . . . . . . Unidentified Prototypes 1 | . . . . 1 . . Parts Lost 10 | . 5 2 1 2 . . Power 2 | . . 1 . 1 . . Propulsion 2 | . 1 1 . . . . Utility 2 | . . . 1 1 . . Weapon 4 | . 4 . . . . . Highest Loss Streak 2 | . 2 2 1 2 . . Average Slot Usage (%) 82 | . 76 64 99 90 88 62 Engine 9 | . 10 4 11 10 11 7 Treads 23 | . 17 6 29 39 44 30 Leg 1 | . . 2 3 . . . Wheel 5 | . 2 11 11 4 . . Storage 12 | . 14 11 11 11 11 7 Protection 8 | . 6 11 10 10 11 7 Energy Gun 1 | . 2 . . . . . Ballistic Gun 17 | . 22 13 22 7 . 1 Launcher 1 | . . . . 7 11 5 Naked Turns . | . . . . . . . Heaviest Build 36 | 14 28 33 33 36 36 36 Greatest Support 80 | 40 40 10 60 80 80 80 Greatest Overweight (x) 8 | . 8 3 3 . . . Average Overweight (x) . | . . 2 1 . . . Largest Inventory Capacity 15 | 8 15 15 15 15 15 15 Average Capacity 13 | 7 12 15 15 15 15 15 Most Carried 15 | 6 11 15 15 15 13 14 Average Carried 11 | 3 8 13 14 13 13 13 Final Capacity 15 | 8 15 15 15 15 15 15 Final Carried 15 | 6 11 15 15 13 13 14 Class Distribution -------------------- 55% | Mutant 34% | Scavenger-Mutant 9% | Commander-Mutant Dominant Class ---------------- Mutant | -10/Materials Mutant | -9/Materials Scavenger-Mutant | -9/Storage Scavenger-Mutant | -9/Garrison Scavenger-Mutant | -9/Recycling Scavenger-Mutant | -7/Factory Resources | -11 -10 -9 -9 -9 -9 -7 ----------- Run | Scr Mat Mat Sto Gar Rec Fac Matter Collected 1042 | 193 315 200 164 130 40 . Remotely . | . . . . . . . Salvage Created 1310 | . 493 302 297 188 . 30 Parts 82 | . 33 17 20 10 . 2 Haulers Intercepted 4 | . 2 . 1 . . 1 Recyclers Shooed 2 | . 1 1 . . . . Parts Field Recycled . | . . . . . . . Retrieved Matter . | . . . . . . . Parts Self-Destructed . | . . . . . . . Prevented . | . . . . . . . Kills | -11 -10 -9 -9 -9 -9 -7 ------- Run | Scr Mat Mat Sto Gar Rec Fac Combat Hostiles Destroyed 34 | . 14 7 6 7 . . Guns 25 | . 13 6 6 . . . AOE 8 | . 1 . . 7 . . Classes Destroyed 9 | . 4 3 1 1 . . Builder 1 | . . 1 . . . . Hauler 4 | . 2 . 1 . . 1 Operator 1 | . . . 1 . . . Watcher 1 | . 1 . . . . . Swarmer 9 | . 9 . . . . . Grunt 17 | . 5 3 3 6 . . Brawler 1 | . . 1 . . . . Duelist 1 | . . . . 1 . . Sentry 6 | . . 3 3 . . . Best Kill Streak 6 | . 6 4 5 4 . 1 Combat Bots Only 6 | . 6 3 4 4 . . Max Kills in Single Turn 2 | . 1 2 1 2 . 1 Gunslinging . | . . . . . . . Exploded 2 | . 1 . . 2 . . Melee . | . . . . . . . Uniques/NPCs Destroyed . | . . . . . . . Combat | -11 -10 -9 -9 -9 -9 -7 -------- Run | Scr Mat Mat Sto Gar Rec Fac Damage Taken 1768 | . 709 441 358 260 . . Core 388 | . 134 211 14 29 . . Absorbed by Shields . | . . . . . . . Core Remaining (%) 60 | 100 46 . . . 36 . Volleys Fired 111 | . 66 15 17 9 . 4 Largest 2 | . 2 2 2 1 . 2 Hottest 105 | . 60 50 50 39 . 105 Shots Fired 176 | . 95 30 34 9 . 8 Gun 163 | . 95 30 34 . . 4 Cannon 4 | . . . . . . 4 Launcher 9 | . . . . 9 . . Special . | . . . . . . . Kinetic 150 | . 82 30 34 . . 4 Thermal 4 | . . . . . . 4 Explosive 9 | . . . . 9 . . Electromagnetic 13 | . 13 . . . . . Robot Hit Streak 13 | . 13 6 7 8 . 4 Robot Miss Streak 7 | . 4 3 7 . . 2 Penetration Max . | . . . . . . . Secondary Targets 3 | . 1 1 1 . . . Max Gunslinging Chain 1 | . 1 1 1 . . . Shots Hit Robots 129 | . 60 35 24 5 . 5 Core Hits 66 | . 30 12 13 10 . 1 Critical Kills . | . . . . . . . Critical Parts Destroyed 2 | . . 1 1 . . . Critical Strikes 2 | . . 1 1 . . . Destroy 1 | . . . 1 . . . Smash 1 | . . 1 . . . . Melee Attacks 12 | . . 12 . . . . Impact 12 | . . 12 . . . . Slashing . | . . . . . . . Piercing . | . . . . . . . Sneak Attacks . | . . . . . . . Combat Hostiles . | . . . . . . . Follow-up Attacks 1 | . . 1 . . . . Damage Inflicted 2343 | . 669 661 476 421 . 116 Guns 1696 | . 634 522 476 . . 64 Cannons 52 | . . . . . . 52 Explosions 456 | . 35 . . 421 . . Melee 139 | . . 139 . . . . Ramming . | . . . . . . . Kinetic 1544 | . 482 522 476 . . 64 Thermal 87 | . 35 . . . . 52 Explosive 421 | . . . . 421 . . Electromagnetic 152 | . 152 . . . . . Impact 139 | . . 139 . . . . Slashing . | . . . . . . . Piercing . | . . . . . . . Highest Corruption 1 | . 1 . . . . . Average Corruption 1 | . 1 . . . . . Corruption Purged . | . . . . . . . Effects 2 | . 2 . . . . . Message Errors 2 | . 2 . . . . . Overload Shots . | . . . . . . . Overflow Damage 47 | . 17 17 . 9 . 4 Projectiles 4 | . . . . . . 4 Explosions 26 | . 17 . . 9 . . Melee 17 | . . 17 . . . . Knockbacks . | . . . . . . . Impact . | . . . . . . . Kinetic . | . . . . . . . Secondary . | . . . . . . . Self-Inflicted Damage 267 | . 100 . . 167 . . Shots 6 | . 3 . . 3 . . Rammed . | . . . . . . . Targets Rammed . | . . . . . . . Kicked . | . . . . . . . Crushed . | . . . . . . . Highest Temperature 72 | . 12 . 8 2 . 72 Average Temperature 15 | . 8 . 3 2 . 39 Received Heat Transfer 387 | . 114 114 123 36 . . Siege Activations . | . . . . . . . Robots Corrupted . | . . . . . . . Combat Hostiles . | . . . . . . . Parts Fried 1 | . . 1 . . . . Impact Corruptions 2 | . . 2 . . . . Robots Melted . | . . . . . . . Combat Hostiles . | . . . . . . . Parts Melted . | . . . . . . . Heat Transferred 150 | . 50 . . . . 100 Parts Sabotaged . | . . . . . . . Parts Stolen . | . . . . . . . Parts Stripped . | . . . . . . . Power Chain Reactions 1 | . 1 . . . . . Missiles Intercepted . | . . . . . . . Alert | -11 -10 -9 -9 -9 -9 -7 ------- Run | Scr Mat Mat Sto Gar Rec Fac Peak Influence 961 | . 339 248 268 258 130 961 Initial 954 | . . 38 104 113 115 954 Average 174 | . 180 100 166 189 120 954 Maximum Alert Level 3 | . 1 1 1 1 . 3 Low Security (%) 66 | 100 58 93 61 54 100 . Level 1 30 | . 41 6 38 45 . . Level 2 . | . . . . . . . Level 3 2 | . . . . . . 100 Level 4 . | . . . . . . . Level 5 . | . . . . . . . High Security . | . . . . . . . Max Security . | . . . . . . . Squads Dispatched 5 | . 1 . 3 . . 1 Investigation . | . . . . . . . Extermination . | . . . . . . . Reinforcement 4 | . 1 . 2 . . 1 Assault . | . . . . . . . Garrison 1 | . . . 1 . . . Intercept . | . . . . . . . Construction Impeded . | . . . . . . . Haulers Reinforced 1 | . . . . . . 1 Active Scanning Responses . | . . . . . . . Cargo Convoy Interrupts . | . . . . . . . Stealth | -11 -10 -9 -9 -9 -9 -7 --------- Run | Scr Mat Mat Sto Gar Rec Fac Distress Signals 5 | . 5 . . . . . Communications Jammed . | . . . . . . . Distress Signals . | . . . . . . . Times Spotted 60 | . 28 7 13 7 5 . Peak Tracking Total 5 | . 5 3 4 4 3 . Tactical Retreats 5 | . 4 . . 1 . . Traps | -11 -10 -9 -9 -9 -9 -7 ------- Run | Scr Mat Mat Sto Gar Rec Fac Traps Triggered 3 | . 3 . . . . . Indirectly 1 | . 1 . . . . . Trap Hack Attempts . | . . . . . . . Triggered . | . . . . . . . Disarmed . | . . . . . . . Reprogrammed . | . . . . . . . Reused . | . . . . . . . Traps Extracted . | . . . . . . . Installed . | . . . . . . . Triggered . | . . . . . . . Machines | -11 -10 -9 -9 -9 -9 -7 ---------- Run | Scr Mat Mat Sto Gar Rec Fac Machines Disabled 2 | . 2 . . . . . Max in Single Turn 2 | . 2 . . . . . Machines Sabotaged . | . . . . . . . Garrisons Compromised . | . . . . . . . Overloaded Fab Kills . | . . . . . . . Fab Network Shutdowns . | . . . . . . . Hacking | -11 -10 -9 -9 -9 -9 -7 --------- Run | Scr Mat Mat Sto Gar Rec Fac Machines Accessed 2 | . . . 2 . . . Terminals 1 | . . . 1 . . . Fabricators . | . . . . . . . Repair Stations . | . . . . . . . Recycling Units . | . . . . . . . Scanalyzers . | . . . . . . . Garrison Access 1 | . . . 1 . . . Total Hacks 4 | . . . 4 . . . Successful 2 | . . . 2 . . . Failed 2 | . . . 2 . . . Catastrophic . | . . . . . . . Database Lockouts . | . . . . . . . Manual . | . . . . . . . Terminals 2 | . . . 2 . . . Fabricators . | . . . . . . . Repair Stations . | . . . . . . . Recycling Units . | . . . . . . . Scanalyzers . | . . . . . . . Garrison Access 2 | . . . 2 . . . Terminal Hacks 1 | . . . 1 . . . Open Door 1 | . . . 1 . . . Fabricator Hacks . | . . . . . . . Repair Station Hacks . | . . . . . . . Recycling Unit Hacks . | . . . . . . . Scanalyzer . | . . . . . . . Garrison Access Hacks 1 | . . . 1 . . . Unlock Access 1 | . . . 1 . . . Unauthorized Hacks . | . . . . . . . Terminals . | . . . . . . . Fabricators . | . . . . . . . Repair Stations . | . . . . . . . Recycling Units . | . . . . . . . Scanalyzers . | . . . . . . . Garrison Access . | . . . . . . . Data Cores Recovered . | . . . . . . . Used . | . . . . . . . Hacking Detections 1 | . . . 1 . . . Full Trace Events . | . . . . . . . Feedback Events . | . . . . . . . Feedback Blocked . | . . . . . . . Robot Schematics Acquired . | . . . . . . . Robots Built . | . . . . . . . Matter . | . . . . . . . Time . | . . . . . . . Total Robot Build Rating . | . . . . . . . Part Schematics Acquired . | . . . . . . . Parts Built . | . . . . . . . Matter . | . . . . . . . Time . | . . . . . . . Total Part Build Rating . | . . . . . . . Parts Repaired . | . . . . . . . Time . | . . . . . . . Parts Recycled . | . . . . . . . Recycled Matter . | . . . . . . . Retrieved Matter . | . . . . . . . Retrieved Components . | . . . . . . . Parts Scanalyzed . | . . . . . . . Part Schematics Acquired . | . . . . . . . Parts Damaged . | . . . . . . . Bothacking | -11 -10 -9 -9 -9 -9 -7 ------------ Run | Scr Mat Mat Sto Gar Rec Fac Used RIF Installer 1 | . . . . 1 . . Robots Hacked . | . . . . . . . Non-combat . | . . . . . . . Combat . | . . . . . . . Robot Hacks Applied . | . . . . . . . Relay Couplers Released . | . . . . . . . Robots Rewired . | . . . . . . . Allies Hacked . | . . . . . . . Hacks Repelled . | . . . . . . . Allies | -11 -10 -9 -9 -9 -9 -7 -------- Run | Scr Mat Mat Sto Gar Rec Fac Total Allies 10 | . . . 10 . . . Largest Group 10 | . . . 10 . . . Highest-Rated Group 88 | . . . 88 . . . Highest-Rated Ally 16 | . . . 16 . . . Total Orders . | . . . . . . . Ally Attacks 47 | . . . 47 . . . Total Damage 429 | . . . 429 . . . Kills 8 | . . . 8 . . . Allies Corrupted . | . . . . . . . Allies Melted . | . . . . . . . Intel | -11 -10 -9 -9 -9 -9 -7 ------- Run | Scr Mat Mat Sto Gar Rec Fac Robot Analysis Total . | . . . . . . . Derelict Logs Recovered . | . . . . . . . Drone Launches . | . . . . . . . Drone Recoveries . | . . . . . . . Exploration | -11 -10 -9 -9 -9 -9 -7 ------------- Run | Scr Mat Mat Sto Gar Rec Fac Turns Passed 2167 | 98 873 302 481 223 136 54 Spaces Moved 993 | 55 387 161 158 123 86 23 Core 5 | 4 1 . . . . . Treads 631 | 51 264 . 84 123 86 23 Legs . | . . . . . . . Wheels 357 | . 122 161 74 . . . Hover . | . . . . . . . Flight . | . . . . . . . Fastest Speed 50 | 50 110 110 125 160 160 160 Average Speed 156 | 152 179 112 143 160 160 160 Slowest Speed 450 | 160 450 125 160 160 160 160 Overloaded Moves . | . . . . . . . Propulsion Burnouts . | . . . . . . . Robots Hopped . | . . . . . . . Cave-ins Triggered . | . . . . . . . Exploration Rate (%) 20 | 5 53 16 18 32 19 1 Regions Visited 6 Branch Regions 2 Pre-discovered Areas 1 | . . . 1 . . . Known Exits Taken 1 | . . . 1 . . . Unknown Exits Taken 4 | 1 1 1 . . 1 . Scrap Searched . | . . . . . . . Spaces Dug . | . . . . . . . Terrain Destroyed 83 | . 2 . . 81 . . Melee . | . . . . . . . Projectile . | . . . . . . . AOE 83 | . 2 . . 81 . . Terrain Rammed . | . . . . . . . Walls Destroyed . | . . . . . . . Machines Disabled . | . . . . . . . Actions | -11 -10 -9 -9 -9 -9 -7 --------- Run | Scr Mat Mat Sto Gar Rec Fac Total 1411 | 67 475 232 379 141 85 32 Wait 235 | . 4 32 197 2 . . Move 988 | 54 386 160 158 122 85 23 Hop . | . . . . . . . Pick Up 21 | 7 6 3 1 2 . 2 Fast Attach 23 | 5 9 8 1 . . . Attach 9 | 1 2 . 1 3 . 2 Detach . | . . . . . . . Swap 4 | . 1 1 1 1 . . Drop 9 | . 1 2 3 2 . 1 Fire 111 | . 66 15 17 9 . 4 Melee 11 | . . 11 . . . . Ram . | . . . . . . . Kick . | . . . . . . . Crush . | . . . . . . . Escape Stasis . | . . . . . . . Rewire . | . . . . . . . Trap . | . . . . . . . Miscellaneous . | . . . . . . . Route ------- -11/Scrapyard -10/Materials (discovered 3 exits: [*Mat x2] / [*Min]) -9/Materials -9/Storage -9/Garrison -9/Recycling -7/Factory History --------- Turn | Location | Event 63 | -11/Scrapyard | Discovered new exit (range 16) 99 | -11/Scrapyard | Entered Materials 309 | -10/Materials | Build established: Mutant 398 | -10/Materials | Discovered new exit (range 8) 794 | -10/Materials | Discovered new exit (range 3) 877 | -10/Materials | Discovered new exit (range 7) 944 | -10/Materials | Core integrity fell below 50% 972 | -10/Materials | Entered another Materials area 972 | -9/Materials | Evolved 2 slots: Propulsion x2 1152 | -9/Materials | Core integrity fell below 50% 1235 | -9/Materials | Discovered new exit (range 8) 1274 | -9/Materials | Entered Storage 1410 | -9/Storage | Found Prototype Launcher 1478 | -9/Storage | Assisted by bots powering up and referring to "LRC-V3" 1498 | -9/Storage | Learned location of Armory (-4) 1690 | -9/Storage | Garrison activated, responded to threat 1755 | -9/Storage | Identified exit to Garrison 1755 | -9/Storage | Entered Garrison 1816 | -9/Garrison | Triggered checkpoint 1832 | -9/Garrison | Identified Gui. Missile Launcher 1943 | -9/Garrison | Discovered new exit (range 12) 1972 | -9/Garrison | Installed Relay Interface Framework 1978 | -9/Garrison | Entered Recycling 1980 | -9/Recycling | Build established: Scavenger-Mutant 2020 | -9/Recycling | Spotter reported a threat 2042 | -9/Recycling | Spotter reported a threat 2042 | -9/Recycling | Spotter reported a threat 2066 | -9/Recycling | Spotter reported a threat 2073 | -9/Recycling | Spotter reported a threat 2074 | -9/Recycling | Spotter reported a threat 2094 | -9/Recycling | Discovered new exit (range 6) 2114 | -9/Recycling | Entered Factory 2114 | -7/Factory | Evolved 4 slots: Utility x4 2168 | -7/Factory | Self-destructed Last Messages --------------- 02042_ ALERT: Unidentified potential threat approaching Factory. 02064_ N-01 Spotter is scanning... 02066_ N-01 Spotter sends a signal. 02066_ ALERT: Unidentified potential threat approaching Factory. 02071_ N-01 Spotter is scanning... 02073_ N-01 Spotter sends a signal. 02073_ ALERT: Unidentified potential threat approaching Factory. 02094_ EXIT=FOUND 02103_ Acquired 40 matter. PARAMETERS=UTILITY+4 LOCATION=UNKNOWN GOAL=ESCAPE 02135_ Acquired Plasma Cannon. 02152_ Dropped Gui. Missile Launcher. 02155_ Acquired Gui. Missile Launcher. 02156_ A-02 Transporter calls for reinforcements. 02156_ ALERT: Hostile activity reported, dispatching reinforcements to area. 02162_ Destroyed Weight Redist. System. 02165_ A-02 Transporter destroyed. Map ----- +----------------------------------------------------+ | ?????????????????????????????????????????????????? | | ?????????????????????????????????????????????????? | | ?????????????????????????????????????????????????? | | ?????????????????????????????????????????????????? | | ???????????????????????????????????#?????????????? | | ????????????????????????????????? #?????????????? | | ??????????????????????????????? ###???????????? | | ??????????????????????????????? ??????????? | | ?????????????????????????????? ??????????? | | ?????????????????????????????? ?????????? | | ?????????????????????????????? ?????????? | | ???????????????????#+######### ?????????? | | ???????????????????# ????????? | | ???????????????????# ????????? | | ???????????????????# ???????? | | ???????????????????# ???????? | | ???????????????????# ???????? | | ???????????????????# ???????? | | ???????????????????# ???????? | | ???????????????????# ###+###########??????? | | ?????????????##????# # #??????? | | ?????????????# !###== + #??????? | | ?????????????+ ]=%=] # #??????? | | ?????????????# / ###=! # #??????? | | ?????????????##????# # """"T"""" #??????? | | ???????????????????# @ # """"""""""" #??????? | | ???????????????????######/##############?????????? | | ???????????????????????? ??????????????????????? | | ???????????????????????? ??????????????????????? | | ??????????????????????? ?????????????????????? | | ???????????????????????"""""?????????????????????? | | ??????????????????????"""""""????????????????????? | | ??????????????????????"""""""????????????????????? | | ????????????????????? """"""" ???????????????????? | | ?????????????????????????????????????????????????? | | ?????????????????????????????????????????????????? | | ?????????????????????????????????????????????????? | | ?????????????????????????????????????????????????? | | | | | | | | | | | | | | | | | | | | | | | | | +----------------------------------------------------+ Best States ------------- Heat Dissipation 34 Energy Generation 10 Energy Capacity 250 Matter Stores 300 Matter Capacity 300 Sight Range 16 Terrain Scan Density 10 Core Shielding 20 Propulsion Shielding 66 Evasion (%) 40 Recoil Reduction 4 Item Schematics ----------------- None Robot Schematics ------------------ None Fabricated ------------ Nothing Alien Tech Used ----------------- None Achievements -------------- None Challenges ------------ None Game ------ Seed PhasingDimensionalClaw Manual? 1 Play Time 00:18:58 Cumulative 1093.2 hours Start 2021.09.04 @ 00:15:34 End 2021.09.04 @ 00:44:29 Sessions 1 Manual Loads 0 Difficulty Rogue Special Mode None Game No. 696 Rogue 696 Adventurer 0 Explorer 0 Win Type - Total 18 Types 10/1/4/3/0/0/0/0/0 Lore% 89 Gallery% 91 Achievement% 81 Wizard Run 0 Options --------- ASCII 0 Keyboard 0 Movement Mouse Keybinds 0 Fullscreen 1 Font 24/Smallcaps Map View 76x50 Tactical HUD 1 Map Filters NONE Filters NONE Steam 1 RUN: 3b7492ec-e7cf-4a86-b3aa-970c10024fe6